fUST/lending_fUST_20250609
["ID","MTS","AMOUNT","RATE_DAILY","PERIOD"]
[365043835,1749424239951,-771.48,0.00021095,2]
[365043836,1749424239962,-440.0,0.00021095,2]
[365043837,1749424239971,-564.13,0.00021095,2]
[365043838,1749424239982,-1132.87,0.00021095,2]
[365043839,1749424239993,-1469.97,0.00021095,2]
[365043840,1749424240004,-1312.92,0.00021095,2]
[365043841,1749424240015,-440.0,0.00021095,2]
[365043842,1749424240025,-440.0,0.00021095,2]
[365043843,1749424240036,-678.4,0.00021095,2]
[365043845,1749424240046,-440.0,0.00021095,2]
[365043847,1749424240056,-440.0,0.00021095,2]
[365043849,1749424240067,-663.34,0.00021095,2]
[365043851,1749424240076,-533.8,0.00021095,2]
[365043853,1749424240086,-1127.52989399,0.00021107,4]
[365043854,1749424240104,-790.4906898,0.00021107,4]
[365043855,1749424240179,-440.0,0.00019178,2]
[365043856,1749424240189,-337.84,0.00019452,2]
[365043857,1749424240213,-102.16,0.00019452,2]
[365043858,1749424240223,-253.69391418,0.00019726,2]
[365043859,1749424240235,-186.30608582,0.00019726,2]
[365043860,1749424240244,-353.54013354,0.0002,2]
[365043861,1749424240257,-86.45986646,0.0002,2]
[365043862,1749424240267,-160.0,0.00020109,2]
[365043863,1749424240278,-160.0,0.00020109,2]
[365043864,1749424240289,-584.7048124,0.00021107,4]
[365043865,1749424240301,-362.04263407,0.00021107,4]
[365043866,1749424240315,-272.08406286,0.00021243,2]
[365043867,1749424240324,-2864.76803026,0.00021279,5]
[365043868,1749424240334,-1031.03,0.00021369,2]
[365043869,1749424240344,-1314.56,0.00021369,2]
[365043870,1749424240355,-440.0,0.00021369,2]
[365043871,1749424240366,-509.54,0.00021369,2]
[365043872,1749424240376,-542.04,0.00021369,2]
[365043873,1749424240386,-1266.52,0.00021369,2]
[365043874,1749424240396,-440.0,0.00021369,2]
[365043875,1749424240406,-969.02,0.00021369,2]
[365043876,1749424240417,-771.48,0.00021369,2]
[365043877,1749424240426,-440.0,0.00021369,2]
[365043878,1749424240436,-564.13,0.00021369,2]
[365043879,1749424240448,-1132.87,0.00021369,2]
[365043880,1749424240460,-1469.97,0.00021369,2]
[365043881,1749424240470,-1312.92,0.00021369,2]
[365043882,1749424240480,-678.4,0.00021369,2]
[365043883,1749424240490,-440.0,0.00021369,2]
[365043884,1749424240500,-440.0,0.00021369,2]
[365043885,1749424240510,-663.34,0.00021369,2]
[365043886,1749424240520,-533.8,0.00021369,2]
[365043887,1749424240531,-228.99856483,0.00021379,2]
[365043888,1749424240541,-151.0,0.00021379,2]
[365043889,1749424240552,-198.0,0.00021379,2]
[365043890,1749424240562,-151.0,0.00021379,2]
[365043891,1749424240572,-215.57713781,0.00021383,2]
[365043892,1749424240584,-151.0,0.00021406,2]
[365043893,1749424240594,-151.0,0.00021406,2]
[365043894,1749424240605,-2864.76803026,0.00021452,5]
[365043895,1749424240615,-2864.76803026,0.00021624,5]
[365043896,1749424240626,-500.0,0.00021643,4]
[365043897,1749424240636,-1031.03,0.00021643,2]
[365043898,1749424240646,-1314.56,0.00021643,2]
[365043899,1749424240657,-440.0,0.00021643,2]
[365043900,1749424240667,-509.54,0.00021643,2]
[365043901,1749424240678,-542.04,0.00021643,2]
[365043902,1749424240689,-1266.52,0.00021643,2]
[365043903,1749424240699,-440.0,0.00021643,2]
[365043904,1749424240709,-969.02,0.00021643,2]
[365043905,1749424240720,-771.48,0.00021643,2]
[365043906,1749424240731,-440.0,0.00021643,2]
[365043907,1749424240742,-564.13,0.00021643,2]
[365043908,1749424240752,-1132.87,0.00021643,2]
[365043909,1749424240763,-1469.97,0.00021643,2]
[365043910,1749424240773,-1312.92,0.00021643,2]
[365043911,1749424240784,-678.4,0.00021643,2]
[365043912,1749424240794,-440.0,0.00021643,2]
[365043913,1749424240805,-440.0,0.00021643,2]
[365043914,1749424240815,-663.34,0.00021643,2]
[365043915,1749424240825,-533.8,0.00021643,2]
[365043916,1749424240836,-494.57,0.00021714,2]
[365043917,1749424240845,-2864.76803026,0.00021797,6]
[365043918,1749424240857,-500.0,0.00021831,2]
[365043919,1749424240867,-800.0,0.00021861,2]
[365043920,1749424240876,-503.01712647,0.00021883,2]
[365043921,1749424240887,-500.0,0.00021892,2]
[365043922,1749424240897,-3000.0,0.000219,2]
[365043923,1749424240907,-3000.0,0.0002191,2]
[365043924,1749424240917,-1031.03,0.00021917,2]
[365043925,1749424240927,-1314.56,0.00021917,2]
[365043926,1749424240938,-440.0,0.00021917,2]
[365043927,1749424240948,-509.54,0.00021917,2]
[365043928,1749424240958,-542.04,0.00021917,2]
[365043929,1749424240967,-1266.52,0.00021917,2]
[365043930,1749424240978,-440.0,0.00021917,2]
[365043931,1749424240987,-969.02,0.00021917,2]
[365043932,1749424240997,-771.48,0.00021917,2]
[365043933,1749424241007,-440.0,0.00021917,2]
[365043934,1749424241018,-564.13,0.00021917,2]
[365043935,1749424241028,-1132.87,0.00021917,2]
[365043936,1749424241038,-1469.97,0.00021917,2]
[365043937,1749424241049,-1312.92,0.00021917,2]
[365043938,1749424241058,-678.4,0.00021917,2]
[365043939,1749424241068,-440.0,0.00021917,2]
[365043940,1749424241079,-440.0,0.00021917,2]
[365043941,1749424241090,-663.34,0.00021917,2]
[365043942,1749424241100,-533.8,0.00021917,2]
[365043943,1749424241109,-3000.0,0.0002192,2]
[365043944,1749424241119,-3000.0,0.0002193,2]
[365043945,1749424241130,-3000.0,0.0002194,2]
[365043946,1749424241139,-3000.0,0.0002195,2]
[365043947,1749424241149,-3000.0,0.0002196,2]
[365043948,1749424241159,-2864.76803026,0.00021969,6]
[365043949,1749424241169,-3000.0,0.0002197,2]
[365043950,1749424241178,-500.0,0.00021973,2]
[365043951,1749424241188,-3000.0,0.0002198,2]
[365043952,1749424241197,-3000.0,0.0002199,2]
[365043953,1749424241207,-3000.0,0.00022,2]
[365043954,1749424241216,-1029.21,0.00022,7]
[365043955,1749424241226,-66529.22,0.00022,7]
[365043956,1749424241235,-842.5625,0.00022,7]
[365043957,1749424241245,-171.0,0.00022,2]
[365043958,1749424241254,-213.05153702,0.00022,7]
[365043959,1749424241263,-159.0,0.00022,2]
[365043960,1749424241273,-3000.0,0.0002201,2]
[365043961,1749424241282,-3000.0,0.0002202,2]
[365043962,1749424241292,-3000.0,0.0002203,2]
[365043963,1749424241302,-3000.0,0.0002204,2]
[365043964,1749424241314,-3000.0,0.0002205,2]
[365043965,1749424241323,-3000.0,0.0002206,2]
[365043966,1749424241333,-3000.0,0.0002207,2]
[365043967,1749424241342,-3000.0,0.0002208,2]
[365043968,1749424241353,-3000.0,0.0002209,2]
[365043969,1749424241362,-3000.0,0.000221,2]
[365043970,1749424241372,-369.56,0.000221,7]
[365043971,1749424241382,-3000.0,0.0002211,2]
[365043972,1749424241395,-3000.0,0.0002212,2]
[365043973,1749424241405,-3000.0,0.0002213,2]
[365043974,1749424241414,-151.0,0.00022138,2]
[365043975,1749424241424,-151.0,0.00022138,2]
[365043976,1749424241433,-207.4,0.00022138,2]
[365043977,1749424241443,-5000.0,0.00022138,2]
[365043978,1749424241452,-500.0,0.00022138,2]
[365043979,1749424241462,-500.0,0.00022138,2]
[365043980,1749424241471,-236.72530795,0.00022138,2]
[365043981,1749424241480,-800.0,0.00022138,2]
[365043982,1749424241490,-500.0,0.00022138,2]
[365043983,1749424241499,-800.0,0.00022138,2]
[365043984,1749424241508,-500.0,0.00022138,2]
[365043985,1749424241517,-800.0,0.00022138,2]
[365043986,1749424241526,-800.0,0.00022138,2]
[365043987,1749424241538,-800.0,0.00022138,2]
[365043988,1749424241547,-800.0,0.00022138,2]
[365043989,1749424241557,-800.0,0.00022138,2]
[365043990,1749424241566,-400.0,0.00022138,2]
[365043991,1749424241575,-3000.0,0.0002214,2]
[365043992,1749424241584,-2864.76803026,0.00022141,6]
[365043993,1749424241594,-3000.0,0.0002215,2]
[365043994,1749424241603,-215.57713781,0.00022152,2]
[365043995,1749424241612,-3000.0,0.0002216,2]
[365043996,1749424241622,-3000.0,0.0002217,2]
[365043997,1749424241633,-3000.0,0.0002218,2]
[365043998,1749424241643,-3000.0,0.0002219,2]
[365043999,1749424241652,-500.0,0.00022191,5]
[365044000,1749424241662,-1031.03,0.00022191,4]
[365044001,1749424241671,-1314.56,0.00022191,4]
[365044002,1749424241682,-440.0,0.00022191,4]
[365044003,1749424241692,-509.54,0.00022191,4]
[365044004,1749424241702,-542.04,0.00022191,4]
[365044005,1749424241712,-1266.52,0.00022191,4]
[365044006,1749424241721,-440.0,0.00022191,4]
[365044007,1749424241731,-969.02,0.00022191,4]
[365044008,1749424241741,-771.48,0.00022191,4]
[365044009,1749424241751,-440.0,0.00022191,4]
[365044010,1749424241760,-564.13,0.00022191,4]
[365044011,1749424241770,-1132.87,0.00022191,4]
[365044012,1749424241780,-1469.97,0.00022191,4]
[365044013,1749424241791,-1312.92,0.00022191,4]
[365044014,1749424241801,-678.4,0.00022191,4]
[365044015,1749424241811,-440.0,0.00022191,4]
[365044016,1749424241821,-389.78663427,0.00022191,4]
[365044017,1749424241831,-663.34,0.00022191,4]
[365044018,1749424241841,-533.8,0.00022191,4]
[365044019,1749424241851,-3000.0,0.000222,2]
[365044020,1749424241862,-3000.0,0.0002221,2]
[365044021,1749424241871,-3000.0,0.0002222,2]
[365044022,1749424241881,-3000.0,0.0002223,2]
[365044023,1749424241891,-3000.0,0.0002224,2]
[365044024,1749424241900,-3000.0,0.0002225,2]
[365044025,1749424241910,-3000.0,0.0002226,2]
[365044026,1749424241920,-3000.0,0.0002227,2]
[365044027,1749424241930,-3000.0,0.0002228,2]
[365044028,1749424241940,-600.0,0.00022283,2]
[365044029,1749424241950,-500.0,0.00022283,2]
[365044030,1749424241960,-3000.0,0.0002229,2]
[365044031,1749424241971,-3000.0,0.000223,2]
[365044032,1749424241981,-3640.778062,0.0002231,2]
[365044033,1749424241991,-2864.76803026,0.00022314,7]
[365044034,1749424242002,-272.08406286,0.00022325,2]
[365044035,1749424242011,-1000.0,0.00022379,2]
[365044036,1749424242022,-1000.0,0.0002244,2]
[365044037,1749424242032,-400.0,0.00022465,2]
[365044038,1749424242043,-400.0,0.00022465,2]
[365044039,1749424242053,-400.0,0.00022465,2]
[365044040,1749424242064,-400.0,0.00022465,2]
[365044041,1749424242074,-400.0,0.00022465,2]
[365044042,1749424242084,-400.0,0.00022465,2]
[365044043,1749424242094,-400.0,0.00022465,2]
[365044044,1749424242104,-400.0,0.00022465,2]
[365044045,1749424242113,-400.0,0.00022465,2]
[365044046,1749424242123,-400.0,0.00022465,2]
[365044047,1749424242132,-400.0,0.00022465,2]
[365044048,1749424242142,-371.26,0.00022465,2]
[365044049,1749424242152,-1031.03,0.00022465,4]
[365044050,1749424242162,-1314.56,0.00022465,4]
[365044051,1749424242172,-440.0,0.00022465,4]
[365044052,1749424242182,-509.54,0.00022465,4]
[365044053,1749424242191,-542.04,0.00022465,4]
[365044054,1749424242201,-1266.52,0.00022465,4]
[365044055,1749424242211,-440.0,0.00022465,4]
[365044056,1749424242222,-969.02,0.00022465,4]
[365044057,1749424242232,-771.48,0.00022465,4]
[365044058,1749424242243,-440.0,0.00022465,4]
[365044059,1749424242255,-564.13,0.00022465,4]
[365044060,1749424242265,-1132.87,0.00022465,4]
[365044061,1749424242275,-1469.97,0.00022465,4]
[365044062,1749424242284,-1312.92,0.00022465,4]
[365044063,1749424242295,-678.4,0.00022465,4]
[365044064,1749424242304,-440.0,0.00022465,4]
[365044065,1749424242318,-663.34,0.00022465,4]
[365044066,1749424242327,-533.8,0.00022465,4]
[365044067,1749424242336,-2864.76803026,0.00022486,7]
[365044068,1749424242346,-157.461156,0.00022545,2]
[365044069,1749424242358,-2864.76803026,0.00022659,7]
[365044070,1749424242368,-2159.0,0.00022682,2]
[365044071,1749424242378,-652.0,0.00022682,2]
[365044072,1749424242390,-389.12510712,0.00022692,2]
[365044073,1749424242399,-405.0,0.00022703,2]
[365044074,1749424242515,-1031.03,0.00022739,4]
[365044075,1749424242526,-1314.56,0.00022739,4]
[365044076,1749424242536,-440.0,0.00022739,4]
[365044077,1749424242547,-509.54,0.00022739,4]
[365044078,1749424242557,-542.04,0.00022739,4]
[365044079,1749424242566,-1266.52,0.00022739,4]
[365044080,1749424242576,-440.0,0.00022739,4]
[365044081,1749424242586,-969.02,0.00022739,4]
[365044082,1749424242595,-771.48,0.00022739,4]
[365044083,1749424242605,-440.0,0.00022739,4]
[365044084,1749424242614,-564.13,0.00022739,4]
[365044085,1749424242624,-1132.87,0.00022739,4]
[365044086,1749424242634,-1469.97,0.00022739,4]
[365044087,1749424242643,-1312.92,0.00022739,4]
[365044088,1749424242653,-678.4,0.00022739,4]
[365044089,1749424242663,-440.0,0.00022739,4]
[365044090,1749424242673,-663.34,0.00022739,4]
[365044091,1749424242683,-533.8,0.00022739,4]
[365044092,1749424242692,-587.0,0.00022763,2]
[365044093,1749424242702,-587.0,0.00022763,2]
[365044094,1749424242711,-2864.76803026,0.00022831,8]
[365044095,1749424242721,-1200.0,0.00022831,2]
[365044096,1749424242730,-352.94100457,0.00022831,2]
[365044097,1749424242740,-215.57713781,0.00022922,2]
[365044098,1749424242751,-1500.0,0.00022927,2]
[365044099,1749424242761,-800.0,0.00022957,2]
[365044100,1749424242771,-1500.0,0.00022988,2]
[365044101,1749424242780,-66529.22,0.00023,7]
[365044102,1749424242790,-2864.76803026,0.00023003,8]
[365044103,1749424242800,-1031.03,0.00023013,4]
[365044104,1749424242809,-1314.56,0.00023013,4]
[365044105,1749424242819,-440.0,0.00023013,4]
[365044106,1749424242829,-509.54,0.00023013,4]
[365044107,1749424242839,-542.04,0.00023013,4]
[365044108,1749424242849,-1266.52,0.00023013,4]
[365044109,1749424242859,-440.0,0.00023013,4]
[365044110,1749424242869,-969.02,0.00023013,4]
[365044111,1749424242880,-771.48,0.00023013,4]
[365044112,1749424242890,-440.0,0.00023013,4]
[365044113,1749424242900,-564.13,0.00023013,4]
[365044114,1749424242911,-1132.87,0.00023013,4]
[365044115,1749424242923,-1469.97,0.00023013,4]
[365044116,1749424242934,-1312.92,0.00023013,4]
[365044117,1749424242944,-678.4,0.00023013,4]
[365044118,1749424242954,-440.0,0.00023013,4]
[365044119,1749424242963,-663.34,0.00023013,4]
[365044120,1749424242972,-533.8,0.00023013,4]
[365044121,1749424242982,-160.0,0.00023014,7]
[365044122,1749424242991,-2864.76803026,0.00023176,8]
[365044123,1749424243000,-1029.21,0.000232,7]
[365044127,1749424243010,-157.461156,0.00023226,7]
[365044129,1749424243021,-1031.03,0.00023287,4]
[365044131,1749424243031,-1314.56,0.00023287,4]
[365044134,1749424243043,-390.17799719,0.00023287,4]
[365044135,1749424243052,-509.54,0.00023287,4]
[365044136,1749424243062,-542.04,0.00023287,4]
[365044138,1749424243073,-1266.52,0.00023287,4]
[365044140,1749424243083,-440.0,0.00023287,4]
[365044142,1749424243093,-969.02,0.00023287,4]
[365044144,1749424243104,-771.48,0.00023287,4]
[365044145,1749424243114,-440.0,0.00023287,4]
[365044146,1749424243124,-564.13,0.00023287,4]
[365044147,1749424243134,-1132.87,0.00023287,4]
[365044148,1749424243144,-1469.97,0.00023287,4]
[365044149,1749424243154,-1312.92,0.00023287,4]
[365044150,1749424243164,-678.4,0.00023287,4]
[365044151,1749424243173,-440.0,0.00023287,4]
[365044152,1749424243183,-663.34,0.00023287,4]
[365044153,1749424243193,-533.8,0.00023287,4]
[365044154,1749424243203,-3000.0,0.000233,2]
[365044155,1749424243212,-369.56,0.000233,7]
[365044157,1749424243222,-502.54998049,0.000233,9]
[365044159,1749424243232,-3000.0,0.0002331,2]
[365044161,1749424243242,-3000.0,0.0002332,2]
[365044163,1749424243252,-514.92259284,0.00023323,5]
[365044165,1749424243262,-3000.0,0.0002333,2]
[365044167,1749424243272,-3000.0,0.0002334,2]
[365044169,1749424243281,-2864.76803026,0.00023348,9]
[365044170,1749424243291,-3000.0,0.0002335,2]
[365044171,1749424243301,-3000.0,0.0002336,2]
[365044172,1749424243314,-3000.0,0.0002337,2]
[365044173,1749424243324,-1800.0,0.00023379,2]
[365044174,1749424243333,-3000.0,0.0002338,2]
[365044175,1749424243343,-659.43,0.00023384,2]
[365044176,1749424243355,-3000.0,0.0002339,2]
[365044177,1749424243365,-165.33094289,0.00023397,2]
[365044178,1749424243375,-3000.0,0.000234,2]
[365044180,1749424243384,-272.08406286,0.00023407,2]
[365044182,1749424243396,-3000.0,0.0002341,2]
[365044184,1749424243405,-3000.0,0.0002342,2]
[365044185,1749424243415,-3000.0,0.0002343,2]
[365044186,1749424243425,-3000.0,0.0002344,2]
[365044187,1749424243434,-3000.0,0.0002345,2]
[365044188,1749424243444,-3000.0,0.0002346,2]
[365044189,1749424243454,-3000.0,0.0002347,2]
[365044190,1749424243464,-498.56595591,0.00023475,2]
[365044191,1749424243475,-3000.0,0.0002348,2]
[365044192,1749424243485,-3000.0,0.0002349,2]
[365044193,1749424243495,-3000.0,0.000235,2]
[365044194,1749424243505,-50315.99,0.000235,2]
[365044195,1749424243515,-364.5816698,0.00023507,2]
[365044196,1749424243525,-215.0738,0.00023507,2]
[365044197,1749424243535,-3000.0,0.0002351,2]
[365044198,1749424243546,-300.0,0.00023514,2]
[365044199,1749424243557,-3000.0,0.0002352,2]
[365044200,1749424243567,-1588.860058,0.0002352,3]
[365044201,1749424243576,-2864.76803026,0.00023521,9]
[365044202,1749424243586,-3000.0,0.0002353,2]
[365044203,1749424243596,-2000.0,0.00023536,2]
[365044204,1749424243606,-3000.0,0.0002354,2]
[365044205,1749424243616,-3000.0,0.0002355,2]
[365044206,1749424243626,-3000.0,0.0002356,2]
[365044207,1749424243635,-1031.03,0.00023561,4]
[365044208,1749424243645,-1314.56,0.00023561,4]
[365044209,1749424243655,-509.54,0.00023561,4]
[365044210,1749424243665,-542.04,0.00023561,4]
[365044211,1749424243675,-1266.52,0.00023561,4]
[365044212,1749424243684,-440.0,0.00023561,4]
[365044213,1749424243694,-969.02,0.00023561,4]
[365044214,1749424243704,-771.48,0.00023561,4]
[365044215,1749424243715,-440.0,0.00023561,4]
[365044216,1749424243725,-564.13,0.00023561,4]
[365044217,1749424243735,-1132.87,0.00023561,4]
[365044218,1749424243745,-1469.97,0.00023561,4]
[365044219,1749424243756,-1312.92,0.00023561,4]
[365044220,1749424243765,-678.4,0.00023561,4]
[365044221,1749424243775,-440.0,0.00023561,4]
[365044222,1749424243786,-663.34,0.00023561,4]
[365044223,1749424243798,-533.8,0.00023561,4]
[365044224,1749424243807,-3000.0,0.0002357,2]
[365044225,1749424243817,-3000.0,0.0002358,2]
[365044226,1749424243827,-3000.0,0.0002359,2]
[365044227,1749424243838,-3000.0,0.000236,2]
[365044228,1749424243847,-151.0,0.000236,5]
[365044229,1749424243857,-842.5625,0.000236,3]
[365044230,1749424243866,-834.62475315,0.000236,3]
[365044231,1749424243876,-160.0,0.000236,3]
[365044232,1749424243886,-213.05153702,0.000236,3]
[365044233,1749424243896,-160.0,0.000236,3]
[365044234,1749424243906,-3000.0,0.0002361,2]
[365044235,1749424243916,-600.0,0.00023617,2]
[365044236,1749424243925,-3000.0,0.0002362,2]
[365044237,1749424243936,-3000.0,0.0002363,2]
[365044238,1749424243945,-3000.0,0.0002364,2]
[365044239,1749424243955,-3000.0,0.0002365,2]
[365044240,1749424243964,-3000.0,0.0002366,2]
[365044241,1749424243974,-3000.0,0.0002367,2]
[365044242,1749424243984,-800.0,0.00023678,2]
[365044243,1749424243993,-3000.0,0.0002368,2]
[365044244,1749424244003,-800.0,0.00023683,2]
[365044245,1749424244013,-3000.0,0.0002369,2]
[365044246,1749424244023,-215.57713781,0.00023692,2]
[365044247,1749424244033,-2864.76803026,0.00023693,9]
[365044248,1749424244043,-2000.0,0.00023698,7]
[365044249,1749424244053,-2000.0,0.00023698,7]
[365044250,1749424244062,-1000.0,0.00023698,7]
[365044251,1749424244072,-165.33094289,0.00023699,2]
[365044252,1749424244084,-165.3309429,0.00023699,2]
[365044253,1749424244094,-153.0,0.00023699,2]
[365044254,1749424244103,-153.0,0.00023699,2]
[365044255,1749424244113,-3000.0,0.000237,2]
[365044256,1749424244123,-3000.0,0.0002371,2]
[365044257,1749424244133,-3000.0,0.0002372,2]
[365044258,1749424244143,-293.71584771,0.0002372,2]
[365044259,1749424244152,-3000.0,0.0002373,2]
[365044260,1749424244162,-800.0,0.00023739,2]
[365044261,1749424244172,-4051.59022,0.0002374,2]
[365044262,1749424244182,-800.0,0.00023741,2]
[365044263,1749424244192,-501.51409749,0.0002378,9]
[365044264,1749424244201,-200.0,0.00023799,2]
[365044265,1749424244211,-200.0,0.00023799,2]
[365044266,1749424244220,-2446.31,0.000238,2]
[365044267,1749424244230,-158.6873432,0.00023808,2]
[365044268,1749424244240,-800.0,0.00023815,2]
[365044269,1749424244249,-800.0,0.00023827,2]
[365044270,1749424244259,-1031.03,0.00023835,4]
[365044271,1749424244269,-1314.56,0.00023835,4]
[365044272,1749424244279,-509.54,0.00023835,4]
[365044273,1749424244288,-542.04,0.00023835,4]
[365044274,1749424244299,-1266.52,0.00023835,4]
[365044275,1749424244310,-528.35724221,0.00023835,4]
[365044276,1749424244322,-969.02,0.00023835,4]
[365044277,1749424244332,-771.48,0.00023835,4]
[365044278,1749424244342,-176.0196522,0.00023835,4]
[365044279,1749424244355,-564.13,0.00023835,4]
[365044280,1749424244365,-1132.87,0.00023835,4]
[365044281,1749424244376,-1469.97,0.00023835,4]
[365044282,1749424244387,-1312.92,0.00023835,4]
[365044283,1749424244397,-678.4,0.00023835,4]
[365044284,1749424244406,-512.8,0.00023835,4]
[365044285,1749424244416,-663.34,0.00023835,4]
[365044286,1749424244426,-533.8,0.00023835,4]
[365044287,1749424244436,-600.0,0.00023863,2]
[365044288,1749424244446,-2864.76803026,0.00023866,10]
[365044289,1749424244455,-134649.22673212,0.00023899,3]
[365044290,1749424244465,-513.05660411,0.000239,2]
[365044291,1749424244474,-160.0,0.000239,3]
[365044292,1749424244484,-157.461156,0.00023912,11]
[365044293,1749424244493,-157.461156,0.00023912,15]
[365044294,1749424244503,-1446.95699465,0.00023927,2]
[365044295,1749424244513,-2400.0,0.00023927,2]
[365044296,1749424244522,-150.0,0.0002397,30]
[365044297,1749424244531,-1446.95699463,0.00023986,2]
[365044298,1749424244541,-229.60437222,0.00024,7]
[365044299,1749424244550,-13529.12,0.00024,10]
[365044300,1749424244559,-9431.37,0.00024,10]
[365044301,1749424244569,-3894.42,0.00024,10]
[365044302,1749424244578,-66529.22,0.00024,7]
[365044303,1749424244587,-834.62475315,0.00024,7]
[365044304,1749424244597,-886.0,0.00024,2]
[365044305,1749424244607,-160.0,0.00024,7]
[365044306,1749424244616,-483278.70448852,0.00024002,20]
[365044307,1749424244626,-151.0,0.00024002,7]
[365044308,1749424244635,-156.599705,0.00024002,7]
[365044309,1749424244644,-151.0,0.00024002,7]
[365044310,1749424244653,-151.0,0.00024002,7]
[365044311,1749424244663,-151.0,0.00024002,7]
[365044312,1749424244672,-151.0,0.00024002,7]
[365044313,1749424244682,-151.0,0.00024002,7]
[365044314,1749424244691,-151.0,0.00024002,7]
[365044315,1749424244700,-151.0,0.00024002,7]
[365044316,1749424244709,-299.637199,0.00024002,7]
[365044317,1749424244719,-151.0,0.00024002,7]
[365044318,1749424244728,-151.0,0.00024002,7]
[365044319,1749424244738,-151.0,0.00024002,7]
[365044320,1749424244747,-160.02432,0.00024002,7]
[365044321,1749424244756,-151.0,0.00024002,7]
[365044322,1749424244858,-151.0,0.00024002,7]
[365044323,1749424244880,-222.267408,0.00024002,7]
[365044324,1749424244891,-222.267408,0.00024002,7]
[365044325,1749424244901,-151.0,0.00024002,7]
[365044326,1749424244911,-165.3309429,0.00024027,2]
[365044327,1749424244920,-2864.76803026,0.00024038,10]
[365044328,1749424244931,-1446.95699463,0.00024046,2]
[365044329,1749424244940,-800.0,0.00024053,2]
[365044330,1749424244950,-5888.0,0.00024055,2]
[365044331,1749424244960,-2500.0,0.00024084,2]
[365044332,1749424244970,-1754.0,0.00024096,2]
[365044333,1749424244979,-160.0,0.000241,7]
[365044334,1749424244989,-160.0,0.000241,7]
[365044335,1749424244999,-2200.0,0.00024105,2]
[365044336,1749424245009,-1446.95699463,0.00024105,2]
[365044337,1749424245020,-601.56873915,0.00024109,2]
[365044338,1749424245030,-1031.03,0.00024109,4]
[365044339,1749424245040,-1314.56,0.00024109,4]
[365044340,1749424245051,-509.54,0.00024109,4]
[365044341,1749424245061,-542.04,0.00024109,4]
[365044342,1749424245071,-1266.52,0.00024109,4]
[365044343,1749424245081,-969.02,0.00024109,4]
[365044344,1749424245091,-771.48,0.00024109,4]
[365044345,1749424245101,-564.13,0.00024109,4]
[365044346,1749424245111,-1132.87,0.00024109,4]
[365044347,1749424245121,-1469.97,0.00024109,4]
[365044348,1749424245132,-1312.92,0.00024109,4]
[365044349,1749424245142,-678.4,0.00024109,4]
[365044350,1749424245152,-663.34,0.00024109,4]
[365044351,1749424245162,-533.8,0.00024109,4]
[365044352,1749424245172,-211.0,0.0002416,10]
[365044353,1749424245181,-1446.95699463,0.00024165,2]
[365044354,1749424245191,-1754.0,0.00024168,2]
[365044355,1749424245201,-2864.76803026,0.0002421,10]
[365044356,1749424245211,-1754.0,0.00024221,2]
[365044357,1749424245221,-250.0,0.00024221,2]
[365044358,1749424245230,-1446.95699463,0.00024224,2]
[365044359,1749424245240,-452.0,0.00024263,2]
[365044360,1749424245249,-1754.0,0.00024278,2]